bitfinex/quotes_ETHUSD_20220305
["timestamp","ask_amount","ask_price","bid_price","bid_amount"]
[1646487627283,0.00778355,2643.7,2643.3,1.09179182]
[1646487627487,1.17972573,2643.8,2643.4,0.546]
[1646487627688,1.17972573,2643.8,2642.7,0.25]
[1646487627888,1.17972573,2643.8,2643.1,0.546]
[1646487628189,0.67932573,2643.8,2643.1,0.546]
[1646487628388,0.376,2643.7,2642.6,1.0424]
[1646487628589,1.16923418,2642.7,2642.6,0.4964]
[1646487629793,1.54523418,2642.7,2642.6,0.4964]
[1646487630036,1.54523418,2642.7,2642.1,0.25]
[1646487630235,0.376,2642.5,2642.1,0.25]
[1646487630435,0.376,2642.5,2641.3,0.25]
[1646487630637,0.376,2642.5,2641.2,0.3784]
[1646487631237,0.376,2642.5,2641.0,1.5415]
[1646487631238,0.376,2642.3,2641.0,1.5415]
[1646487631444,1.12103813,2641.3,2641.0,1.5415]
[1646487631636,1.12103813,2641.3,2640.8,0.25]
[1646487631837,1.12103813,2641.3,2640.6,0.89242021]
[1646487632438,1.12103813,2641.3,2640.1,2.585]
[1646487632641,1.12103813,2641.3,2640.2,0.65966842]
[1646487633239,1.12103813,2641.3,2640.1,0.25291468]
[1646487633687,1.12103813,2641.3,2640.1,0.25]
[1646487633877,1.12103813,2641.3,2640.5,1.05657207]
[1646487635480,1.12103813,2641.3,2640.1,1.25291465]
[1646487635684,1.49703813,2641.3,2640.1,1.25291465]
[1646487635880,1.49703813,2641.3,2640.2,3.5]
[1646487635881,0.1892,2641.2,2640.2,3.5]
[1646487636686,0.1892,2641.2,2640.4,0.92542604]
[1646487637083,1.49703813,2641.3,2640.4,0.92542604]
[1646487638249,1.13003063,2640.9,2640.1,3.75282109]
[1646487638547,1.13003063,2640.9,2639.7,3.5]
[1646487638746,1.13003063,2640.9,2640.1,0.00282113]
[1646487639146,1.13003063,2640.9,2640.1,0.989764]
[1646487639547,1.13003063,2640.9,2640.1,0.98694287]
[1646487639947,1.13003063,2640.9,2640.1,0.98976529]
[1646487640147,0.1892,2641.5,2640.2,3.876]
[1646487640349,0.13819997,2641.9,2640.2,3.876]
[1646487640550,0.13819997,2641.9,2640.4,0.376]
[1646487640850,0.13819997,2641.9,2640.5,5.0641]
[1646487641052,0.5674,2642.6,2640.5,8.4401]
[1646487641286,1.13469248,2642.0,2641.4,1.09580639]
[1646487642284,0.5653,2642.6,2641.4,1.09580639]
[1646487642488,0.1893,2642.6,2641.4,1.09580639]
[1646487642888,0.376,2642.7,2641.4,1.09580639]
[1646487643290,0.1892,2643.0,2641.4,1.47180639]
[1646487643488,3.51238564,2643.4,2642.1,1.1592684]
[1646487643489,1.21288328,2642.7,2642.1,1.1592684]
[1646487643688,1.21288328,2642.7,2641.5,0.376]
[1646487644290,1.21288328,2642.7,2641.4,0.25]
[1646487644491,0.1892,2642.6,2641.4,0.25]
[1646487644933,0.1892,2642.6,2641.2,0.97891732]
[1646487644934,1.05215316,2641.8,2641.2,0.97891732]
[1646487645135,0.15318017,2641.8,2641.2,0.97891732]
[1646487646236,0.15318017,2641.8,2640.8,2.2228]
[1646487646437,0.15318017,2641.8,2640.6,3.23]
[1646487647437,1.08709865,2641.3,2640.7,1.05554735]
[1646487647638,0.376,2641.9,2640.7,1.05554735]
[1646487648039,0.376,2641.9,2640.8,0.6358583]
[1646487648440,0.376,2641.9,2640.7,1.05554735]
[1646487648888,0.89341324,2641.6,2640.7,1.05554735]
[1646487649289,0.376,2641.9,2640.8,3.5]
[1646487649490,0.376,2641.9,2640.9,0.63581461]
[1646487649694,0.376,2641.9,2641.0,3.5]
[1646487649891,0.1892,2642.3,2641.0,3.5]
[1646487649892,0.376,2642.3,2641.0,3.5]
[1646487650091,0.376,2642.3,2641.1,0.6365469]
[1646487650294,0.454,2642.4,2640.8,3.5]
[1646487650295,1.55503955,2642.1,2641.5,1.0448872]
[1646487651103,0.1892,2642.7,2641.6,3.5]
[1646487651297,0.13819997,2643.0,2641.6,3.5]
[1646487651298,0.1392,2642.9,2641.6,3.5]
[1646487652301,1.39509184,2642.6,2642.0,0.99699898]
[1646487652539,1.01909184,2642.6,2642.0,0.99699898]
[1646487652936,1.01909184,2642.6,2641.7,1.6186]
[1646487653135,1.01909184,2642.6,2641.4,6.4092]
[1646487653336,1.39509184,2642.6,2641.4,6.4092]
[1646487654337,0.9064864,2642.0,2641.4,2.9092]
[1646487654640,0.9064864,2642.0,2641.3,0.04999]
[1646487654641,1.2824864,2642.0,2641.3,0.04999]
[1646487655039,1.2824864,2642.0,2640.8,0.1892]
[1646487655239,1.2824864,2642.0,2640.9,0.6374526]
[1646487655439,0.97239654,2641.5,2640.9,1.79613539]
[1646487655639,0.97239654,2641.5,2641.0,0.6374526]
[1646487655841,0.376,2641.9,2641.0,0.6374526]
[1646487656485,0.376,2642.1,2641.0,0.6374526]
[1646487656882,0.376,2642.1,2641.0,4.1374526]
[1646487657083,0.376,2642.1,2641.1,0.6374526]
[1646487657488,1.55619794,2641.9,2641.2,0.6374526]
[1646487657688,1.55619794,2641.9,2641.3,0.92043258]
[1646487657887,1.55619794,2641.9,2640.6,4.19483394]
[1646487658088,1.55619794,2641.9,2640.7,0.63864584]
[1646487658289,1.55619794,2641.9,2640.8,3.48741101]
[1646487658490,1.18019794,2641.9,2640.9,0.63864584]
[1646487658689,0.5652,2642.5,2641.0,3.5]
[1646487658690,0.1892,2642.5,2641.0,3.5]
[1646487658890,3.7993,2642.6,2641.1,0.63864584]
[1646487659088,3.7993,2642.6,2641.2,3.5]
[1646487659488,3.7993,2642.6,2641.3,0.63864584]
[1646487659489,3.1753,2642.6,2641.3,0.63864584]
[1646487659690,3.1753,2642.6,2642.0,0.93269517]
[1646487659691,1.38402521,2642.6,2642.0,0.93269517]
[1646487659939,1.00802521,2642.6,2642.0,0.93269517]
[1646487660339,0.13819997,2643.0,2642.0,0.93269517]
[1646487660538,0.13819997,2643.0,2642.1,3.5]
[1646487660539,1.25940589,2642.9,2642.1,3.5]
[1646487660738,0.376,2642.9,2642.1,3.5]
[1646487660938,0.13819997,2643.0,2642.1,3.5]
[1646487661140,1.07263298,2642.9,2642.1,3.5]
[1646487661343,0.1892,2642.9,2642.0,0.93269517]
[1646487661541,1.16607385,2642.9,2642.0,0.93269517]
[1646487662547,0.88346234,2642.8,2642.0,0.93269517]
[1646487662750,1.06955868,2642.5,2642.0,0.93269517]
[1646487662946,1.01955868,2642.5,2641.8,3.5]
[1646487663548,1.39555868,2642.5,2641.6,3.5]
[1646487663783,1.39555868,2642.5,2641.5,1.547]
[1646487663784,1.39555868,2642.5,2641.5,5.047]
[1646487663986,1.39555868,2642.5,2641.6,0.63944445]
[1646487664181,1.39555868,2642.5,2641.5,2.78095645]
[1646487664182,1.01089066,2642.1,2641.5,2.78095645]
[1646487664382,1.01089066,2642.1,2641.6,0.63939696]
[1646487664784,1.01089066,2642.1,2641.3,0.25]
[1646487664785,1.38689066,2642.1,2641.3,0.25]
[1646487664983,1.38689066,2642.1,2641.1,2.8333]
[1646487664984,1.38689066,2642.1,2641.1,1.6321]
[1646487665184,1.38689066,2642.1,2640.9,2.357]
[1646487665387,0.376,2641.9,2641.0,0.63951842]
[1646487665583,1.00488741,2641.3,2640.9,2.357]
[1646487665787,1.00488741,2641.3,2640.7,1.36357808]
[1646487665983,1.00488741,2641.3,2640.8,0.63959048]
[1646487667286,1.00239522,2640.9,2640.8,0.63959048]
[1646487667550,0.16752962,2640.9,2640.3,1.623]
[1646487667751,0.16752962,2640.9,2640.4,0.62420651]
[1646487667957,4.876,2641.5,2640.5,0.62420651]
[1646487668146,0.376,2641.3,2640.2,3.50900651]
[1646487668445,0.376,2641.3,2640.3,0.62448494]
[1646487669046,1.14705834,2640.7,2640.3,0.62448494]
[1646487669445,1.14705834,2640.7,2640.4,0.62448494]
[1646487669645,1.14705834,2640.7,2640.0,2.71335131]
[1646487669846,1.14705834,2640.7,2640.1,0.62446466]
[1646487670047,1.14705834,2640.7,2640.1,0.6274837]
[1646487670846,1.14705834,2640.7,2640.1,0.62446466]
[1646487671196,1.14705834,2640.7,2640.1,0.62748363]
[1646487672186,1.14705834,2640.7,2640.1,0.62446466]
[1646487672388,1.14705834,2640.7,2640.1,0.62748363]
[1646487673292,1.14705834,2640.7,2640.1,0.62446466]
[1646487673492,1.14705834,2640.7,2640.1,0.62738174]
[1646487673693,1.14705834,2640.7,2640.3,0.02657934]
[1646487673893,1.14705834,2640.7,2640.4,0.62446466]
[1646487678440,4.5,2641.1,2640.3,0.02657934]
[1646487678696,0.90041749,2641.0,2640.3,0.02657934]
[1646487679084,0.1892,2641.3,2640.6,0.0169531]
[1646487679085,0.5652,2641.3,2640.6,0.0169531]
[1646487679285,1.27656217,2641.2,2640.6,0.0169531]
[1646487679487,0.376,2641.2,2640.6,1.18677537]
[1646487679686,0.376,2641.2,2640.7,0.6257205]
[1646487680390,0.376,2641.6,2640.7,4.1257205]
[1646487680588,0.90056928,2641.5,2640.8,0.6257205]
[1646487680793,0.376,2641.6,2640.8,0.6257205]
[1646487681388,0.376,2641.8,2641.2,1.23448593]
[1646487681591,1.2768314,2641.7,2640.8,1.5878]
[1646487681788,0.9008314,2641.6,2640.9,0.6255079]
[1646487681987,0.376,2641.7,2640.9,0.6255079]
[1646487683042,0.9711038,2641.5,2640.9,0.6255079]
[1646487683842,0.9711038,2641.5,2641.0,0.01689787]
[1646487684142,0.9711038,2641.5,2641.1,0.6255079]
[1646487684642,0.9711038,2641.5,2641.0,0.01689787]
[1646487686284,0.376,2641.7,2641.0,0.01689787]
[1646487686483,0.90065509,2641.6,2641.0,0.01689787]
[1646487686882,0.90065509,2641.5,2641.0,0.01689787]
[1646487687084,0.376,2641.7,2641.0,0.01689787]
[1646487687284,1.91120075,2641.6,2641.0,0.01689787]
[1646487687486,1.01001249,2641.6,2641.0,0.01689787]
[1646487688186,0.376,2642.1,2641.0,0.01689787]
[1646487688389,0.376,2641.9,2641.1,0.62571774]
[1646487688590,0.90141175,2641.8,2641.2,3.5]
[1646487688788,2.7119,2642.3,2641.3,0.62571774]
[1646487688988,2.15980317,2642.7,2641.3,0.62571774]
[1646487688989,1.27525099,2642.2,2641.4,3.5]
[1646487689189,0.89925099,2642.1,2641.4,3.5]
[1646487689388,0.91280317,2642.9,2641.2,0.01687027]
[1646487689389,0.89925099,2642.0,2641.8,1.00627143]
[1646487689587,0.89925099,2642.0,2641.5,0.62798922]
[1646487689588,1.0187618,2642.5,2641.7,1.0232399]
[1646487689787,0.87737513,2642.4,2641.7,1.0232399]
[1646487690835,0.87737513,2642.3,2641.7,1.0232399]
[1646487691034,0.87737513,2642.2,2641.7,1.0232399]
[1646487691239,0.87737513,2642.1,2641.7,1.0232399]
[1646487691435,0.376,2642.6,2641.7,1.0232399]
[1646487691637,1.22354624,2642.4,2641.7,1.0232399]
[1646487691834,0.87775975,2642.3,2641.7,1.0232399]
[1646487693691,0.87775975,2642.3,2641.9,0.01677369]
[1646487698539,1.0,2642.7,2641.9,0.01677369]
[1646487698740,0.87843617,2642.6,2641.9,0.01677369]
[1646487698944,0.87843617,2642.5,2641.9,0.01677369]
[1646487699140,0.376,2642.8,2642.0,0.65016567]
[1646487699343,0.87849286,2642.7,2642.1,0.01666367]
[1646487699644,0.87849286,2642.7,2642.2,1.85349348]
[1646487699841,1.10301988,2643.4,2642.3,4.14978576]
[1646487700043,0.8782947,2643.3,2642.9,1.00081044]
[1646487700241,0.8782947,2643.3,2642.4,1.5967]
[1646487700440,0.8782947,2643.3,2642.5,3.5]
[1646487701288,0.8782947,2643.3,2642.5,16.406]
[1646487701491,0.91280317,2644.0,2642.7,0.376]
[1646487701492,0.189,2643.7,2642.7,0.376]
[1646487701689,0.87878877,2643.6,2642.8,4.1495746]
[1646487701886,0.189,2643.9,2642.8,4.876]
[1646487701887,0.87878877,2643.5,2642.8,4.876]
[1646487702087,0.189,2644.0,2642.8,3.876]
[1646487702287,0.8776596,2643.9,2643.7,1.11780473]
[1646487702490,0.8776596,2643.8,2643.7,1.11780473]
[1646487702692,2.24824147,2644.2,2643.7,1.11780473]
[1646487702991,0.87773797,2644.1,2643.7,1.66280473]
[1646487703790,2.24824147,2644.2,2643.7,1.66280473]
[1646487704391,2.24824147,2644.2,2643.8,3.5]
[1646487704590,2.24824147,2644.2,2643.8,4.045]
[1646487705036,2.24824147,2644.2,2643.8,0.545]
[1646487706237,2.24824147,2644.2,2643.8,4.045]
[1646487706641,2.24824147,2644.2,2643.8,0.545]
[1646487707437,2.24824147,2644.2,2644.1,0.98168812]
[1646487708541,2.24824147,2644.2,2643.8,0.545]
[1646487709388,2.24824147,2644.2,2644.0,0.021979]
[1646487709588,2.24824147,2644.2,2643.9,1.07282485]
[1646487711193,2.24824147,2644.2,2643.8,0.54158074]
[1646487711392,2.24824147,2644.2,2643.6,1.0]
[1646487711591,2.24824147,2644.2,2643.4,0.545]
[1646487711796,2.62424147,2644.2,2643.1,4.3333]
[1646487711992,2.62424147,2644.2,2643.1,1.5967]
[1646487712436,1.04323518,2643.7,2643.1,2.66753695]
[1646487712643,1.04323518,2643.7,2643.1,1.07083695]
[1646487713642,1.41923518,2643.7,2642.9,0.25]
[1646487713844,1.41923518,2643.7,2642.7,1.545]
[1646487713845,3.5,2643.6,2642.7,1.0]
[1646487714042,0.376,2643.5,2642.6,1.6347]
[1646487714242,0.376,2643.3,2642.6,1.6347]
[1646487714445,0.376,2643.3,2642.5,2.3433]
[1646487714643,0.93607341,2643.1,2642.4,3.94099699]
[1646487714944,0.93607341,2643.1,2642.2,0.25]
[1646487714945,0.376,2642.9,2642.2,0.25]
[1646487715149,3.5,2642.8,2641.8,1.1695]
[1646487715342,1.0,2643.4,2641.8,1.1695]
[1646487715343,3.5,2643.0,2641.8,1.1695]
[1646487715542,1.2093,2644.1,2642.3,3.0]
[1646487715742,0.0121358,2643.7,2642.6,0.376]
[1646487715944,0.0121358,2643.7,2642.7,15.951]
[1646487716591,5.41474147,2644.2,2643.2,1.20201687]
[1646487716592,1.17573827,2643.8,2643.2,1.20201687]
[1646487716792,1.17573827,2643.8,2643.2,1.74701687]
[1646487716997,0.01213691,2643.7,2643.2,0.545]
[1646487717293,0.01213691,2643.7,2642.8,2.1753]
[1646487717898,1.55173827,2643.8,2642.8,1.6303]
[1646487718098,0.90916619,2643.4,2642.8,2.68070797]
[1646487718298,0.90916619,2643.4,2642.5,6.0145]
[1646487718299,1.28516619,2643.4,2642.5,6.0145]
[1646487718498,1.28516619,2643.4,2642.5,3.279]
[1646487718698,0.376,2643.6,2642.5,3.279]
[1646487718898,0.376,2643.6,2642.6,3.5]
[1646487719298,0.376,2643.6,2642.6,4.045]
[1646487719701,0.01172677,2643.7,2642.6,4.045]
[1646487719937,0.01172677,2643.7,2643.4,0.95552889]
[1646487720136,3.8747,2644.2,2643.4,1.50052889]
[1646487720137,0.00113331,2644.2,2643.4,1.50052889]
[1646487720338,0.8708244,2644.2,2643.4,0.545]
[1646487720539,0.00113331,2644.3,2643.4,0.545]
[1646487720540,0.01172736,2643.7,2643.4,0.545]
[1646487721338,0.00113331,2644.5,2643.4,0.545]
[1646487721540,0.376,2643.9,2643.3,0.97741182]
[1646487722143,0.376,2643.9,2643.0,0.545]
[1646487723545,0.376,2643.5,2643.0,0.545]
[1646487724287,0.01129629,2644.0,2643.0,0.545]
[1646487724487,0.376,2643.8,2643.0,0.545]
[1646487724691,1.24810668,2643.7,2643.0,0.545]
[1646487724889,0.376,2643.7,2643.0,0.545]
[1646487725288,0.376,2643.7,2643.1,0.92762139]
[1646487725289,1.48904313,2643.7,2643.1,0.92762139]
[1646487725489,0.01129635,2643.9,2643.1,0.92762139]
[1646487725689,0.376,2643.7,2643.1,0.92762139]
[1646487725988,0.01129635,2643.9,2643.1,0.92762139]
[1646487726292,0.189,2644.2,2643.1,0.92762139]
[1646487726488,0.189,2644.2,2643.5,1.16950702]
[1646487726489,0.01135931,2643.9,2643.5,1.16950702]
[1646487726688,0.01135931,2643.9,2642.8,2.1989]
[1646487727294,0.01135931,2643.9,2642.9,3.5]
[1646487727541,0.565,2644.0,2642.9,4.045]
[1646487727841,0.376,2643.8,2642.9,0.545]
[1646487728941,0.376,2643.6,2642.9,0.545]
[1646487729140,1.32547902,2643.6,2643.0,1.08503143]
[1646487729339,0.94947902,2643.6,2643.0,1.08503143]
[1646487729542,0.376,2643.7,2643.0,1.08503143]
[1646487729942,0.56613331,2644.3,2643.0,1.08503143]
[1646487730140,0.01135025,2643.8,2643.0,1.08503143]
[1646487730941,0.376,2644.1,2643.0,1.08503143]
[1646487731216,0.38735011,2643.9,2642.9,4.045]
[1646487731404,0.87459699,2643.8,2642.9,4.045]
[1646487732303,0.189,2644.2,2642.9,4.045]
[1646487732508,0.01135018,2643.9,2643.0,0.189]
[1646487732707,0.01135018,2643.9,2643.1,0.545]
[1646487732708,0.87590404,2643.8,2643.1,0.545]
[1646487732906,0.01135018,2643.9,2643.2,3.5]
[1646487733105,0.01135018,2643.9,2643.3,0.545]
[1646487733306,0.01135018,2643.9,2643.4,4.62288544]
[1646487733508,0.37713331,2644.6,2643.5,0.545]
[1646487733707,0.00283754,2644.3,2643.6,3.5]
[1646487734006,0.00283754,2644.3,2643.7,0.545]
[1646487734206,0.00283754,2644.3,2643.8,3.5]
[1646487734407,0.00283754,2644.3,2643.9,0.545]
[1646487734608,0.87589416,2644.4,2644.0,0.545]
[1646487734808,0.87589416,2644.4,2644.1,0.545]
[1646487734809,0.84579639,2644.3,2644.1,0.545]
[1646487735039,0.00283787,2644.3,2644.1,0.545]
[1646487735339,0.00283787,2644.3,2644.1,1.63036297]
[1646487735737,0.8457369,2644.4,2644.1,1.63036297]
[1646487735937,0.8457369,2644.4,2644.1,0.545]
[1646487736136,0.00283802,2644.3,2644.1,0.545]
[1646487736938,1.22272298,2644.6,2644.1,0.545]
[1646487737238,0.00283795,2644.3,2644.1,0.545]
[1646487738141,0.84558967,2644.3,2644.1,0.545]
[1646487738342,0.84558967,2644.2,2643.8,1.03238892]
[1646487738542,0.84558967,2644.2,2643.8,0.545]
[1646487738788,0.84558967,2644.2,2643.4,0.734]
[1646487738989,4.72272298,2644.2,2643.3,0.25]
[1646487739189,4.72272298,2644.2,2643.1,1.2212]
[1646487739190,0.376,2644.0,2643.1,1.2212]
[1646487739389,4.34558967,2643.9,2643.0,0.545]
[1646487739587,1.09906503,2643.7,2643.1,1.91537436]
[1646487739787,0.376,2643.8,2643.1,1.23489093]
[1646487739988,0.8464067,2643.7,2643.1,1.23489093]
[1646487740191,0.376,2644.1,2643.1,1.23489093]
[1646487740389,0.84640883,2644.0,2643.1,1.23489093]
[1646487740792,0.84640883,2644.0,2643.2,0.68150608]
[1646487740990,0.01135121,2643.9,2643.2,0.68150608]
[1646487741189,0.84640883,2643.8,2643.2,0.68150608]
[1646487741991,1.90210068,2643.7,2643.2,0.68150608]
[1646487742190,0.84640883,2643.6,2643.2,0.68150608]
[1646487742436,0.84640883,2643.6,2642.9,3.3681]
[1646487742643,0.84640883,2643.6,2643.0,0.68270299]
[1646487743044,3.876,2643.5,2643.0,0.68270299]
[1646487743245,3.876,2643.5,2642.9,0.3789]
[1646487743246,0.376,2643.3,2642.9,0.3789]
[1646487743542,0.376,2643.1,2642.9,0.3789]
[1646487743744,1.22240883,2643.0,2642.9,0.3789]
[1646487744143,16.25240883,2643.0,2642.6,0.25]
[1646487744345,0.376,2642.8,2642.0,0.3783]
[1646487744543,0.376,2642.6,2642.0,0.3783]
[1646487744745,3.5,2642.7,2642.0,0.3783]
[1646487744746,0.376,2642.4,2642.0,0.3783]
[1646487744943,1.15305746,2642.1,2642.0,0.3783]
[1646487745143,1.52905746,2642.1,2642.0,0.3783]
[1646487745543,1.52905746,2642.1,2641.4,1.14421816]
[1646487745743,1.15305746,2642.1,2641.5,0.68256818]
[1646487748705,1.15305746,2642.1,2641.6,0.68256818]
[1646487748901,1.15305746,2642.1,2641.7,0.68256818]
[1646487749101,1.15305746,2642.1,2641.1,1.6105]
[1646487749302,1.15305746,2642.1,2641.2,0.68090954]
[1646487749941,1.15305746,2642.1,2641.2,1.88500748]
[1646487750142,0.5652,2642.6,2641.3,0.68090954]
[1646487750339,0.84601525,2642.5,2641.3,1.05690954]
[1646487750542,0.84601525,2642.5,2641.4,0.68090954]
[1646487750739,0.1892,2642.4,2641.4,1.22590954]
[1646487750941,0.1892,2642.4,2641.5,0.68090954]
[1646487751142,0.92714776,2642.5,2641.9,1.04180127]
[1646487751347,0.1892,2642.4,2641.9,1.04180127]
[1646487751543,0.1892,2642.4,2641.4,0.545]
[1646487751743,0.1892,2642.4,2641.5,0.6805717]
[1646487752143,0.1892,2642.4,2641.6,0.6805717]
[1646487752343,0.1892,2642.4,2641.7,0.6805717]
[1646487752543,0.1892,2642.4,2641.8,0.6805717]
[1646487752743,0.1892,2642.4,2641.2,0.795]
[1646487752744,0.1892,2642.4,2641.7,0.90924163]
[1646487752949,0.1892,2642.4,2641.8,0.68070509]
[1646487753543,0.51419997,2642.7,2641.8,0.68070509]
[1646487753791,0.84611252,2642.6,2641.8,0.68070509]
[1646487753990,4.34611252,2642.6,2641.8,0.68070509]
[1646487754191,0.84611252,2642.5,2641.8,0.68070509]
[1646487754790,0.87773301,2642.3,2641.8,0.68070509]
[1646487755190,0.87773301,2642.3,2641.2,3.0856]
[1646487755390,0.87773301,2642.3,2641.3,0.68061916]
[1646487755795,0.87773301,2642.3,2641.3,0.86981916]
[1646487755991,0.87773301,2642.3,2641.4,0.68061916]
[1646487756191,0.87773301,2642.3,2641.7,1.11060448]
[1646487756390,0.376,2642.4,2641.8,0.68061916]
[1646487756792,0.1892,2642.6,2641.8,0.68061916]
[1646487757649,0.1892,2642.6,2642.1,1.08599615]
[1646487758049,0.13819997,2642.7,2642.1,1.08599615]
[1646487758250,0.84583866,2642.6,2642.1,1.08599615]
[1646487758649,0.13819997,2642.7,2642.1,1.08599615]
[1646487758849,3.9062,2643.2,2642.1,1.08599615]
[1646487759052,0.84579167,2643.1,2642.2,1.22511003]
[1646487759249,4.19761358,2643.7,2642.3,0.68006983]
[1646487759250,0.1892,2643.6,2642.3,0.68006983]
[1646487759451,0.84587574,2643.5,2642.3,1.22506983]
[1646487759750,0.376,2643.4,2642.3,0.545]
[1646487759952,1.93200931,2643.3,2642.7,1.22370168]
[1646487760151,0.84587574,2643.2,2642.7,1.22370168]
[1646487760351,0.84587574,2643.2,2642.3,0.545]
[1646487760553,0.84587574,2643.2,2642.4,0.6800927]
[1646487760750,0.84587574,2643.2,2642.3,0.545]
[1646487760751,1.22187574,2643.2,2642.3,0.545]
[1646487760954,0.84587574,2643.1,2642.3,0.545]
[1646487761205,0.376,2643.0,2642.3,0.545]
[1646487761393,1.07835019,2642.8,2642.2,2.68894709]
[1646487761594,1.07835019,2642.8,2642.2,1.10434709]
[1646487763200,0.376,2643.2,2642.2,1.10434709]
[1646487763402,0.84570122,2643.1,2642.2,1.10434709]
[1646487764801,0.84570122,2643.1,2642.7,1.2073675]
[1646487765040,1.34601038,2642.5,2641.9,0.921]
[1646487765240,1.34601038,2642.5,2642.0,1.05616159]
[1646487765438,1.34601038,2642.5,2642.0,0.921]
[1646487766640,1.34601038,2642.5,2642.3,1.05167749]
[1646487768346,1.34601038,2642.5,2641.8,1.8346]
[1646487768347,1.34601038,2642.5,2641.8,1.96664]
[1646487768545,1.34601038,2642.5,2641.9,0.68014355]
[1646487768990,1.34601038,2642.5,2641.7,0.1892]
[1646487769193,1.34601038,2642.5,2641.8,0.68009638]
[1646487769391,1.34601038,2642.5,2642.2,0.98330494]
[1646487770992,1.34601038,2642.5,2641.7,0.1892]
[1646487771190,1.34601038,2642.5,2641.8,0.68013307]
[1646487772197,1.34601038,2642.5,2642.0,1.23003344]
[1646487772643,1.34601038,2642.5,2642.1,0.68020061]
[1646487773042,2.22767919,2642.5,2642.0,1.23003344]
[1646487773442,2.22767919,2642.5,2641.7,0.7342]
[1646487773643,2.22767919,2642.5,2641.8,0.68025606]
[1646487775346,1.34601038,2642.5,2641.8,0.68025606]
[1646487775945,1.34601038,2642.5,2641.7,1.60132897]
[1646487776212,1.34601038,2642.5,2642.2,0.96653445]
[1646487779406,1.34601038,2642.5,2642.2,0.81823477]
[1646487781348,1.34601038,2642.5,2641.6,2.0809]
[1646487781648,1.34601038,2642.5,2641.8,0.545]
[1646487782856,1.34601038,2642.5,2642.0,1.13952547]
[1646487783451,1.34601038,2642.5,2642.4,1.12246722]
[1646487789054,1.34601038,2642.5,2642.0,0.69483394]
[1646487789255,1.34601038,2642.5,2642.0,1.23983394]
[1646487789455,1.34601038,2642.5,2642.1,0.69483394]
[1646487790254,1.34601038,2642.5,2642.2,0.99601028]
[1646487790456,1.34601038,2642.5,2642.1,0.69483394]
[1646487790654,1.34601038,2642.5,2642.0,0.545]
[1646487791299,1.72201038,2642.5,2641.8,0.69483394]
[1646487791500,0.99632311,2642.1,2641.6,2.21053394]
[1646487791698,0.99632311,2642.1,2641.6,1.5157]
[1646487791898,0.99632311,2642.1,2641.5,2.03005347]
[1646487792097,0.99632311,2642.1,2641.5,1.33521953]
[1646487793402,0.376,2642.2,2641.5,1.33521953]
[1646487793806,4.5,2642.4,2641.5,1.33521953]
[1646487793807,0.376,2642.3,2641.5,1.33521953]
[1646487794808,0.376,2642.2,2641.5,1.33521953]
[1646487795445,1.29680595,2642.2,2641.5,1.33521953]
[1646487795848,1.29680595,2642.2,2641.6,0.69184379]
[1646487796048,0.84402752,2642.1,2641.6,0.69184379]
[1646487796448,4.72002752,2642.1,2641.6,0.69184379]
[1646487796649,0.376,2641.9,2641.6,0.69184379]
[1646487796847,0.84402752,2642.0,2641.3,2.9058]
[1646487796848,1.22002752,2641.8,2641.7,0.69184379]
[1646487797049,1.22002752,2641.8,2641.3,2.9058]
[1646487797050,1.22002752,2641.8,2641.4,0.69184379]
[1646487797262,0.84402752,2641.7,2641.5,0.69184379]
[1646487797551,1.9424519,2641.7,2641.6,0.69184379]
[1646487797752,1.9424519,2641.7,2641.6,0.31584379]
[1646487797951,1.9424519,2641.7,2641.1,0.00125344]
[1646487798150,1.09842438,2641.7,2640.9,0.00125344]
[1646487798798,1.09842438,2641.7,2640.6,0.00125344]
[1646487799001,3.5,2641.6,2640.7,0.00125344]
[1646487799199,0.88593877,2641.2,2640.7,0.00125344]
[1646487799400,0.88593877,2641.2,2640.6,0.99565972]
[1646487799602,4.5,2641.6,2640.6,0.99565972]
[1646487799803,4.5,2641.6,2640.7,0.00125344]
[1646487800809,4.5,2641.6,2641.0,0.87634231]
[1646487800810,1.0,2641.6,2641.0,0.87634231]
[1646487801008,0.1892,2642.1,2641.0,0.87634231]
[1646487801208,3.12223809,2642.2,2641.0,1.42259575]
[1646487801209,1.2182,2642.2,2641.0,1.42259575]
[1646487801508,3.6892,2642.4,2641.1,0.00125344]
[1646487801810,4.38657614,2642.5,2641.2,0.921]
[1646487801811,1.34601038,2642.5,2641.2,0.921]
[1646487802008,0.1892,2642.4,2642.0,1.08604529]
[1646487802451,0.1892,2642.4,2641.8,0.545]
[1646487803449,0.1892,2642.4,2642.0,1.05688854]
[1646487803648,1.53521038,2642.5,2642.0,1.05688854]
[1646487803847,1.34601038,2642.5,2642.0,1.05688854]
[1646487805352,2.52096752,2642.5,2641.8,0.545]
[1646487805553,0.1892,2642.4,2641.6,0.545]
[1646487805849,0.1892,2642.4,2641.5,0.545]
[1646487806298,3.52096752,2642.5,2641.4,1.5941]
[1646487806502,0.90703193,2641.9,2641.4,1.5941]
[1646487806703,0.1892,2642.4,2641.3,2.20939978]
[1646487807603,1.11323383,2642.4,2641.7,1.07582829]
[1646487807803,0.376,2642.3,2641.7,1.07582829]
[1646487808604,0.376,2642.3,2641.3,1.228]
[1646487809605,0.376,2642.3,2641.6,0.99722611]
[1646487813997,0.376,2642.2,2641.6,0.99722611]
[1646487814599,2.32601038,2642.5,2641.6,0.99722611]
[1646487814800,1.32601038,2642.5,2641.6,0.99722611]
[1646487815199,1.32601038,2642.5,2642.0,1.22181481]
[1646487816403,1.32601038,2642.5,2641.8,3.5]
[1646487816404,1.32601038,2642.5,2642.4,1.16692343]
[1646487816603,0.1464271,2642.3,2641.8,4.045]
[1646487816803,0.1464271,2642.3,2641.9,1.08434838]
[1646487817004,0.1464271,2642.3,2642.0,0.545]
[1646487817206,0.1464271,2642.3,2642.0,4.421]
[1646487817851,0.1464271,2642.3,2642.1,1.07220596]
[1646487818051,0.1464271,2642.3,2642.2,1.61720596]
[1646487818651,0.1464271,2642.3,2642.2,1.24120596]
[1646487823124,0.1464271,2642.3,2642.2,0.69620596]